Cogmind - Beta 16 --- EXPLORER MODE // 2025.12.26 @ 14:28:49 Player: K.K.Y. Result: Destroyed by exploding Fusion Modulator Performance ------------- Evolutions (4) 2000 Regions Visited (6) 1200 Robots Destroyed (112) 560 Value Destroyed (3664) 3664 Prototype IDs (5) 100 Alien Tech Used (0) 0 Bonus (2000) 2000 TOTAL SCORE: 9524 Bonus ------- Delivered SUBCON Basin 2000 Cogmind --------- Core Integrity 0/850 Matter 200/300 Energy 198/200 System Corruption 5% Temperature Cool (-136) Movement Walking (540) Ox6 Location -6/Factory Parts ------- > --- POWER (2) -------- Micro Nuclear Core Light Angular Momentum Engine > --- PROPULSION (6) --- Armored Leg (fused) Cooled Aerolev Unit > --- UTILITY (6) ------ Improved Cryofiber Web Advanced Heat Sink Huge Storage Unit Advanced Weight Redist. System Transport Network Coupler Tech Extrapolator > --- WEAPON (2) ------- Hypervelocity Gauss Rifle (fused) > --- INVENTORY (25) --- Medium Treads Advanced Heat Sink Large Storage Unit Weight Redist. System Advanced Weight Redist. System Advanced Sensor Array Advanced Sensor Array Advanced Terrain Scanner Launcher Guidance Computer EM Disruption Field Authchip [R/NC] Authchip [R/Combat] Authchip [R/Combat] Authchip [Propulsion] Authchip [Propulsion] Component Analysis Suite High-powered Tractor Beam Arc Projector Thermic Laser Proton Cannon Phase Cannon Heavy Flak Cannon Mining Laser Plasma Cutter Shock Maul Peak State ------------ > --- POWER ------------ Light Angular Momentum Engine Fission Core > --- PROPULSION ------- Medium Treads Medium Treads Improved Medium Treads Improved Medium Treads Improved Medium Treads Improved Medium Treads > --- UTILITY ---------- Advanced Heat Sink Improved Cooling System Huge Storage Unit Structural Scanner EM Disruption Field Tech Extrapolator > --- WEAPON ----------- Heavy Machine Gun Antimatter Cannon > --- INVENTORY -------- Light Fission Core Large Storage Unit Compact Battery Weight Redist. System Improved Terrain Scanner Improved Targeting Computer Launcher Guidance Computer EM Disruption Field Hardlight Generator Authchip [R/NC] Authchip [R/Combat] Authchip [R/Combat] Authchip [Propulsion] Authchip [Propulsion] Component Analysis Suite High-powered Tractor Beam Arc Projector Heavy Laser Thermic Laser Force Rifle Ion Cannon Hypervelocity Gauss Rifle Mining Laser Plasma Cutter Shock Maul [Rating: 79] Favorites ----------- Power Improved Ion Engine Engine Improved Ion Engine Power Core Fission Core Propulsion Light Treads Treads Light Treads Leg Carbon-fiber Leg Hover Unit Gravmag System Utility Structural Scanner Device Structural Scanner Storage Huge Storage Unit Processor Tech Extrapolator Protection Improved Medium Armor Plating Weapon Particle Cannon Energy Gun Force Rifle Energy Cannon Particle Cannon Ballistic Gun Heavy Machine Gun Ballistic Cannon Antimatter Cannon Special Weapon Mining Laser Impact Weapon Shock Maul Build | -11 -10 -10 -10 -9 -9 -6 ------- Run | Yrd Mat Min Sub Rec Scr Fac Slots Evolved 9 | . 1 . . . . 8 Power 1 | . . . . . . 1 Propulsion 4 | . . . . . . 4 Utility 4 | . 1 . . . . 3 Weapon . | . . . . . . . Parts Attached 73 | 6 2 2 5 8 2 48 Power 13 | 1 . . 1 3 . 8 Engine 9 | 1 . . 1 3 . 4 Core 4 | . . . . . . 4 Reactor . | . . . . . . . Propulsion 19 | 2 . . 1 4 . 12 Treads 14 | 2 . . 1 4 . 7 Leg 3 | . . . . . . 3 Wheel . | . . . . . . . Hover 2 | . . . . . . 2 Flight . | . . . . . . . Utility 22 | 2 1 . 3 . 1 15 Device 13 | 1 . . 2 . 1 9 Storage 4 | 1 1 . 1 . . 1 Processor 4 | . . . . . . 4 Hackware . | . . . . . . . Protection 1 | . . . . . . 1 Artifact . | . . . . . . . Weapon 19 | 1 1 2 . 1 1 13 Energy Gun 6 | 1 . . . . . 5 Energy Cannon 6 | . 1 2 . . 1 2 Ballistic Gun 3 | . . . . . . 3 Ballistic Cannon 2 | . . . . . . 2 Launcher . | . . . . . . . Special Weapon 1 | . . . . 1 . . Impact Weapon 1 | . . . . . . 1 Slashing Weapon . | . . . . . . . Piercing Weapon . | . . . . . . . Special Melee Weapon . | . . . . . . . Unidentified Prototypes 5 | . . . . . . 5 Parts Lost 27 | . . . 2 . . 25 Power 8 | . . . 1 . . 7 Propulsion 9 | . . . . . . 9 Utility 6 | . . . 1 . . 5 Weapon 4 | . . . . . . 4 Highest Loss Streak 4 | . . . 1 . . 4 To Critical Strikes . | . . . . . . . Average Backups 18 | . 4 9 9 14 21 24 Power . | . . . . . 2 . Propulsion . | . . 1 1 . . . Utility 10 | . 1 3 2 7 11 15 Weapon 6 | . 1 3 4 5 5 7 Tool/Special . | . . . . . . . Unused Backups 29 | . . . . 1 1 27 Power 1 | . . . . . 1 . Propulsion 1 | . . . . . . 1 Utility 19 | . . . . 1 . 18 Weapon 7 | . . . . . . 7 Tool/Special 1 | . . . . . . 1 Average Slot Usage (%) 83 | . 76 80 93 100 100 72 Engine 7 | . 12 12 8 12 12 2 Treads 19 | . 25 25 25 25 25 13 Leg 2 | . . . . . . 5 Hover 1 | . . . . . . 3 Device 18 | . 12 12 22 25 25 14 Storage 9 | . 12 12 12 12 12 6 Processor 4 | . . . . . . 10 Energy Gun 2 | . 9 . . . . 5 Energy Cannon 11 | . 4 18 25 23 12 2 Special Weapon 1 | . . . . 1 12 . Peak Build Rating 79 | 6 7 11 32 32 22 79 Average Rating 34 | 5 6 9 24 18 19 53 On Entrance 13 | . 6 6 11 32 17 22 Avg Prop Armor Cover (%) 9 | . . . . . . 9 Naked Turns . | . . . . . . . Heaviest Build 118 | 18 31 34 95 93 95 118 Greatest Support 176 | 40 40 40 40 43 43 176 Greatest Overweight (x) 34 | . . . 2 2 2 34 Average Overweight (x) 1 | . . . . . 1 2 Largest Inventory Capacity 25 | 10 15 15 25 25 25 25 Average Capacity 21 | 9 14 15 21 15 24 25 Most Carried 25 | 5 10 10 25 25 25 25 Average Carried 19 | . 4 9 18 15 21 24 Final Capacity 25 | 10 15 15 25 15 25 25 Final Carried 25 | 1 10 10 25 15 25 25 Class Distribution -------------------- 100% | Hacker-Mutant Dominant Class ---------------- Hacker-Mutant | -10/Materials Hacker-Mutant | -10/Mines Hacker-Mutant | -10/Subcaves Hacker-Mutant | -9/Recycling Hacker-Mutant | -9/Scraptown Hacker-Mutant | -6/Factory Resources | -11 -10 -10 -10 -9 -9 -6 ----------- Run | Yrd Mat Min Sub Rec Scr Fac Matter Collected 1671 | 96 184 20 50 84 37 1200 Remotely . | . . . . . . . Salvage Created 5212 | 101 464 68 424 685 . 3470 Parts 236 | 6 27 3 17 32 . 151 Haulers Intercepted 5 | . 1 . . . . 4 Recyclers Shooed 6 | . 1 . . 1 . 4 Parts Field Recycled . | . . . . . . . Retrieved Matter . | . . . . . . . Parts Self-Destructed . | . . . . . . . Prevented . | . . . . . . . Parts Restored . | . . . . . . . Kills | -11 -10 -10 -10 -9 -9 -6 ------- Run | Yrd Mat Min Sub Rec Scr Fac Combat Hostiles Destroyed 75 | . 8 3 11 4 . 49 Guns 41 | . 5 . . . . 36 Cannons 32 | . 3 3 11 4 . 11 AOE 1 | . . . . . . 1 Classes Destroyed 16 | 2 6 . 4 . . 4 Worker 5 | . 1 . . . . 4 Builder 3 | . 1 . . 1 . 1 Tunneler 2 | 2 . . . . . . Hauler 5 | . 1 . . . . 4 Recycler 12 | 1 2 . . 5 . 4 Mechanic 1 | . . . . . . 1 Operator 1 | . . . . . . 1 Turret 2 | . . . 2 . . . Watcher 6 | . 1 . . . . 5 Swarmer 21 | . 4 2 5 . . 10 Grunt 19 | . 4 1 . . . 14 Sentry 12 | . . . 1 4 . 7 Hunter 6 | . . . . . . 6 Programmer 12 | . . . . . . 12 Artisan 1 | . . . 1 . . . Subdweller 5 | . . . 5 . . . Best Kill Streak 7 | 2 5 2 4 4 . 7 Combat Bots Only 6 | . 4 2 4 2 . 6 Max Kills in Single Turn 2 | 1 1 1 2 1 . 2 Gunslinging . | . . . . . . . Exploded 1 | . . . . . . 1 Melee . | . . . . . . . Uniques/NPCs Destroyed . | . . . . . . . Combat | -11 -10 -10 -10 -9 -9 -6 -------- Run | Yrd Mat Min Sub Rec Scr Fac Hostile Shots Fired 870 | . 30 11 121 20 . 688 Missed 265 | . 10 1 41 8 . 205 Hits 605 | . 20 10 80 12 . 483 Projectile 605 | . 20 10 80 12 . 483 AOE 1 | . . . . . . 1 Critical Strikes 21 | . . . 4 . . 17 Part Disruptions 1 | . . . . . . 1 Damage Taken 5255 | . 126 51 489 111 . 4478 Core 1049 | . 14 26 89 9 . 911 Absorbed by Shields . | . . . . . . . Ignored by Resistances 3232 | . 85 35 325 68 . 2719 Regen/Repaired (Parts) 99 | . . . . . . 99 Core Remaining (%) 72 | 100 . . . . 44 . Volleys Fired 341 | 17 38 6 46 20 . 214 Largest 2 | 1 2 2 2 2 . 2 Hottest 168 | 50 110 136 136 168 . 165 Shots Fired 583 | 17 58 12 92 33 . 371 Gun 319 | 17 38 . . . . 264 Cannon 262 | . 20 12 92 31 . 107 Launcher . | . . . . . . . Special 2 | . . . . 2 . . Kinetic 138 | . . . . . . 138 Thermal 442 | 17 58 12 92 33 . 230 Explosive . | . . . . . . . Electromagnetic 3 | . . . . . . 3 Robot Hit Streak 57 | 8 11 5 17 35 . 57 Robot Miss Streak 3 | 1 2 1 2 . . 3 Penetration Max 1 | . . . . . . 1 Secondary Targets 3 | . . . . . . 3 Max Gunslinging Chain 1 | . . . . . . 1 Shots Hit Robots 477 | 16 45 6 65 24 . 321 Core Hits 182 | 4 19 3 21 11 . 124 Critical Kills 11 | . . . . . . 11 Critical Parts Destroyed 11 | . . . . . . 11 Critical Strikes 38 | 2 3 . . . . 33 Burn 10 | 2 3 . . . . 5 Destroy 25 | . . . . . . 25 Blast 2 | . . . . . . 2 Corrupt 1 | . . . . . . 1 Melee Attacks . | . . . . . . . Impact . | . . . . . . . Slashing . | . . . . . . . Piercing . | . . . . . . . Sneak Attacks . | . . . . . . . Combat Hostiles . | . . . . . . . Follow-up Attacks . | . . . . . . . Damage Inflicted 10646 | 198 633 122 1310 575 . 7808 Guns 5642 | 198 374 . . . . 5070 Cannons 4805 | . 259 122 1310 531 . 2583 Explosions 155 | . . . . . . 155 Melee . | . . . . . . . Ramming 44 | . . . . 44 . . Kinetic 2963 | . . . . . . 2963 Thermal 7601 | 198 633 122 1310 531 . 4807 Explosive . | . . . . . . . Electromagnetic 38 | . . . . . . 38 Impact . | . . . . . . . Slashing . | . . . . . . . Piercing . | . . . . . . . Highest Corruption 5 | . . . . 1 . 5 Average Corruption 2 | . . . . 1 . 2 Corruption Purged . | . . . . . . . Corruption Blocked . | . . . . . . . Effects 92 | . . . . 4 . 88 Message Errors 23 | . . . . . . 23 Matter Fused 19 | . . . . 2 . 17 Heat Flow Errors 15 | . . . . 1 . 14 Energy Discharges 12 | . . . . 1 . 11 Parts Rejected 1 | . . . . . . 1 Parts Fused 2 | . . . . . . 2 Data Loss (minor) 12 | . . . . . . 12 Data Loss (major) 4 | . . . . . . 4 Misfires 4 | . . . . . . 4 Overload Shots . | . . . . . . . Overflow Damage 172 | . . . 22 10 . 140 Projectiles 172 | . . . 22 10 . 140 Explosions . | . . . . . . . Melee . | . . . . . . . Knockbacks 15 | . . . . . . 15 Impact . | . . . . . . . Kinetic 14 | . . . . . . 14 Secondary 1 | . . . . . . 1 Self-Inflicted Damage 65 | . . . . . . 65 Shots 1 | . . . . . . 1 Rammed 7 | . . . . 7 . . Targets Rammed 8 | . . . . 8 . . Kicked . | . . . . . . . Crushed 1 | . . . . 1 . . Highest Temperature 558 | 50 427 225 96 255 . 558 Average Temperature 87 | 18 107 108 26 83 . 90 Received Heat Transfer 2070 | . 87 18 240 54 . 1671 Effects 10 | . . . . 1 . 9 Shutdowns 2 | . . . . . . 2 Energy Bleed 1 | . . . . . . 1 Interference 5 | . . . . 1 . 4 Damage (major) 2 | . . . . . . 2 Siege Activations . | . . . . . . . Martial Activations . | . . . . . . . Shielding Activations . | . . . . . . . Robots Disrupted . | . . . . . . . Combat Hostiles . | . . . . . . . Robots Corrupted . | . . . . . . . Combat Hostiles . | . . . . . . . Parts Fried . | . . . . . . . Impact Corruptions . | . . . . . . . Robots Melted 1 | . . . . . . 1 Combat Hostiles 1 | . . . . . . 1 Parts Melted 35 | 1 2 1 4 3 . 24 Heat Transferred 14103 | 740 1887 222 2368 962 . 7924 Parts Sabotaged . | . . . . . . . Parts Stolen . | . . . . . . . Parts Stripped . | . . . . . . . Power Chain Reactions 1 | . . . . . . 1 Alert | -11 -10 -10 -10 -9 -9 -6 ------- Run | Yrd Mat Min Sub Rec Scr Fac Maximum Alert Level . | . . . . . . . Low Security (%) 100 | 100 100 100 . 100 . 100 Level 1 . | . . . . . . . Level 2 . | . . . . . . . Level 3 . | . . . . . . . Level 4 . | . . . . . . . Level 5 . | . . . . . . . High Security . | . . . . . . . Max Security . | . . . . . . . Peak Influence 91 | 5 85 35 . 35 . 91 Initial . | . . . . . . . Average 7 | 1 19 1 . 1 . 8 Influence Increases 2262 | 15 224 80 265 142 . 1536 Destroy 0b10 Robot/C 1440 | . 160 60 160 80 . 980 Destroy 0b10 Robot/NC 180 | 15 30 . . 35 . 100 Destroy Leader 382 | . 34 20 . . . 328 Successful Hack 49 | . . . . 24 . 25 Disable Machine 12 | . . . . . . 12 Destroy Structure 49 | . . . . 3 . 46 Lose Combat Pursuer 150 | . . . 105 . . 45 Influence Decreases 2262 | 15 224 80 265 142 . 1536 Time Decay 2127 | 15 224 80 265 142 . 1401 Lost Part 135 | . . . . . . 135 Squads Dispatched 20 | . . . . . . 20 Investigation 4 | . . . . . . 4 Extermination 11 | . . . . . . 11 Reinforcement 5 | . . . . . . 5 Assault . | . . . . . . . Garrison . | . . . . . . . Intercept . | . . . . . . . Searches Triggered . | . . . . . . . Construction Impeded . | . . . . . . . Haulers Reinforced 3 | . . . . . . 3 Active Scanning Responses . | . . . . . . . Cargo Convoy Interrupts . | . . . . . . . Stealth | -11 -10 -10 -10 -9 -9 -6 --------- Run | Yrd Mat Min Sub Rec Scr Fac Distress Signals 4 | . . . . . . 4 Communications Jammed . | . . . . . . . Distress Signals . | . . . . . . . Times Spotted 98 | . 12 3 14 4 . 65 Peak Tracking Total 6 | . 3 2 2 2 . 6 Tactical Retreats 6 | . . . 3 . . 3 Traps | -11 -10 -10 -10 -9 -9 -6 ------- Run | Yrd Mat Min Sub Rec Scr Fac Traps Triggered 3 | . . . . . . 3 Indirectly . | . . . . . . . Trap Hack Attempts . | . . . . . . . Triggered . | . . . . . . . Disarmed . | . . . . . . . Reprogrammed . | . . . . . . . Reused . | . . . . . . . Traps Extracted . | . . . . . . . Installed . | . . . . . . . Triggered . | . . . . . . . Machines | -11 -10 -10 -10 -9 -9 -6 ---------- Run | Yrd Mat Min Sub Rec Scr Fac Machines Disabled 4 | . . . 1 . . 3 Max in Single Turn 1 | . . . 1 . . 1 Machines Repaired . | . . . . . . . Machines Dismantled . | . . . . . . . Machines Sabotaged . | . . . . . . . Overloaded Fab Kills . | . . . . . . . Hacking | -11 -10 -10 -10 -9 -9 -6 --------- Run | Yrd Mat Min Sub Rec Scr Fac Machines Accessed 21 | . . . 2 11 . 8 Terminals 10 | . . . . 6 . 4 Fabricators 1 | . . . . . . 1 Repair Stations 1 | . . . . . . 1 Recycling Units 5 | . . . . 5 . . Scanalyzers 2 | . . . . . . 2 Garrison Access . | . . . . . . . Total Hacks 49 | . . . 3 27 . 19 Successful 31 | . . . 3 18 . 10 Failed 18 | . . . . 9 . 9 Catastrophic 1 | . . . . . . 1 Database Lockouts . | . . . . . . . Manual 10 | . . . . 9 . 1 Terminals 25 | . . . . 16 . 9 Fabricators 3 | . . . . . . 3 Repair Stations 2 | . . . . . . 2 Recycling Units 11 | . . . . 11 . . Scanalyzers 5 | . . . . . . 5 Garrison Access . | . . . . . . . Terminal Hacks 12 | . . . 3 6 . 3 Record 1 | . . . 1 . . . Part Schematic 4 | . . . . 3 . 1 Robot Schematic 5 | . . . . 3 . 2 Open Door 1 | . . . 1 . . . Release Object 1 | . . . 1 . . . Fabricator Hacks 2 | . . . . . . 2 Load Schematic 1 | . . . . . . 1 Build 1 | . . . . . . 1 Repair Station Hacks 2 | . . . . . . 2 Scan Component 1 | . . . . . . 1 Repair 1 | . . . . . . 1 Recycling Unit Hacks 4 | . . . . 4 . . Retrieve Components 4 | . . . . 4 . . Scanalyzer 2 | . . . . . . 2 Insert Component 1 | . . . . . . 1 Analyze 1 | . . . . . . 1 Garrison Access Hacks . | . . . . . . . Unauthorized Hacks 9 | . . . . 8 . 1 Terminals 5 | . . . . 4 . 1 Botnet 5 | . . . . 4 . 1 Fabricators . | . . . . . . . Repair Stations . | . . . . . . . Recycling Units 4 | . . . . 4 . . Reject 4 | . . . . 4 . . Scanalyzers . | . . . . . . . Garrison Access . | . . . . . . . Data Cores Recovered 1 | . . . . . . 1 Used . | . . . . . . . Hacking Detections 16 | . . . . 9 . 7 Full Trace Events 6 | . . . . 3 . 3 Feedback Events 1 | . . . . 1 . . Corruption 1 | . . . . 1 . . Feedback Blocked . | . . . . . . . Robot Schematics Acquired 5 | . . . . 3 . 2 Robots Built . | . . . . . . . Authchips . | . . . . . . . Time . | . . . . . . . Total Robot Build Rating . | . . . . . . . Part Schematics Acquired 11 | . . . . 3 . 8 Parts Built 2 | . . . . . . 2 Authchips . | . . . . . . . Time 47 | . . . . . . 47 Total Part Build Rating 10 | . . . . . . 10 Part Studies Acquired . | . . . . . . . Parts Repaired 1 | . . . . . . 1 Time 80 | . . . . . . 80 Parts Recycled . | . . . . . . . Recycled Matter . | . . . . . . . Retrieved Matter . | . . . . . . . Retrieved Components 15 | . . . . 15 . . Parts Scanalyzed 1 | . . . . . . 1 Part Schematics Acquired 1 | . . . . . . 1 Parts Damaged . | . . . . . . . Bothacking | -11 -10 -10 -10 -9 -9 -6 ------------ Run | Yrd Mat Min Sub Rec Scr Fac Used RIF Installer . | . . . . . . . Robots Hacked . | . . . . . . . Non-combat . | . . . . . . . Combat . | . . . . . . . Robot Hacks Applied . | . . . . . . . Relay Couplers Released . | . . . . . . . Fabnet Peak Effective % . | . . . . . . . Robots Rewired . | . . . . . . . Allies Hacked . | . . . . . . . Hacks Repelled . | . . . . . . . Allies | -11 -10 -10 -10 -9 -9 -6 -------- Run | Yrd Mat Min Sub Rec Scr Fac Total Allies . | . . . . . . . Largest Group . | . . . . . . . Highest-Rated Group . | . . . . . . . Highest-Rated Ally . | . . . . . . . Total Orders . | . . . . . . . Ally Attacks . | . . . . . . . Total Damage . | . . . . . . . Kills . | . . . . . . . Allies Corrupted . | . . . . . . . Allies Melted . | . . . . . . . Intel | -11 -10 -10 -10 -9 -9 -6 ------- Run | Yrd Mat Min Sub Rec Scr Fac Active Infowar (turns) 7697 | 119 585 843 1853 1761 1708 828 Optics 1 | . . . . . . 1 Terrain 2 | . . . . . . 2 Structural 7696 | 119 585 843 1853 1761 1708 827 T.N.C. 286 | . . . . . . 286 Robot Analysis Total . | . . . . . . . Derelict Logs Recovered 1 | . . . 1 . . . Drone Launches . | . . . . . . . Drone Recoveries . | . . . . . . . Exploration | -11 -10 -10 -10 -9 -9 -6 ------------- Run | Yrd Mat Min Sub Rec Scr Fac Turns Passed 13088 | 135 585 843 2050 1761 1708 6006 Spaces Moved 4661 | 65 296 514 744 988 567 1487 Core 60 | 13 . . . . . 47 Treads 3900 | 52 296 514 744 988 567 739 Legs 701 | . . . . . . 701 Wheels . | . . . . . . . Hover . | . . . . . . . Flight . | . . . . . . . Fastest Speed 50 | 50 160 160 160 160 160 157 Average Speed 242 | 138 160 160 236 166 298 325 Slowest Speed 1750 | 160 160 160 320 320 320 1750 Overloaded Moves . | . . . . . . . Propulsion Burnouts . | . . . . . . . Robots Hopped . | . . . . . . . Potential Cave-ins . | . . . . . . . Cave-ins Triggered . | . . . . . . . Exploration Rate (%) 57 | 4 62 98 47 99 50 41 Regions Visited 6 Branch Regions 4 Pre-discovered Areas 2 | . . . 2 . . . Known Exits Taken 6 | 1 1 1 1 1 1 . Unknown Exits Taken . | . . . . . . . Scrap Searched 13 | . . . 4 . 9 . Spaces Dug 2 | . . . . 2 . . Terrain Destroyed 46 | . . . . 2 . 44 Melee . | . . . . . . . Projectile 6 | . . . . 2 . 4 AOE 39 | . . . . . . 39 Terrain Rammed . | . . . . . . . Walls Destroyed . | . . . . . . . Machines Disabled . | . . . . . . . Actions | -11 -10 -10 -10 -9 -9 -6 --------- Run | Yrd Mat Min Sub Rec Scr Fac Total 5862 | 93 353 523 942 1061 589 2301 Wait 642 | . 1 . 144 14 3 480 Move 4655 | 64 295 513 743 987 566 1487 Hop . | . . . . . . . Pick Up 75 | 6 11 2 3 12 13 28 Fast Attach 27 | 1 . . 1 . . 25 Attach 30 | 5 2 2 2 . . 19 Detach 6 | . 3 . . . . 3 Swap 26 | . . . 2 9 3 12 Drop 46 | . 3 . 1 10 4 28 Fire 341 | 17 38 6 46 20 . 214 Melee . | . . . . . . . Ram . | . . . . . . . Kick . | . . . . . . . Crush 8 | . . . . 8 . . Escape Stasis 5 | . . . . . . 5 Rewire 1 | . . . . 1 . . Trap . | . . . . . . . Miscellaneous . | . . . . . . . Route ------- -11/Scrapyard -10/Materials (discovered 3 exits: *Mat / *Min x2) -10/Mines (discovered 3 exits: *Mat x2 / *Sub) -10/Subcaves -9/Recycling (discovered 2 exits: *Fac / *Scr) -9/Scraptown -6/Factory (discovered 2 exits: *Fac x2) History --------- Turn | Location | Event 24 | -11/Scrapyard | Identified exit to Materials 24 | -11/Scrapyard | Discovered exit to Materials (range 15) 136 | -11/Scrapyard | Entered Materials 136 | -10/Materials | Evolved 1 slot: Utility x1 266 | -10/Materials | Identified exit to Mines 266 | -10/Materials | Discovered exit to Mines (range 15) 315 | -10/Materials | Build established: Hacker-Mutant 344 | -10/Materials | Identified exit to Materials 344 | -10/Materials | Discovered exit to Materials (range 5) 460 | -10/Materials | Discovered exit to Mines (range 12) 721 | -10/Materials | Entered Mines 723 | -10/Mines | Met a Derelict bent on vengeance 1022 | -10/Mines | Identified exit to Subcaves 1022 | -10/Mines | Discovered exit to Subcaves (range 9) 1186 | -10/Mines | Discovered exit to Materials (range 10) 1220 | -10/Mines | Discovered exit to Materials (range 10) 1564 | -10/Mines | Entered Subcaves 1568 | -10/Subcaves | Learned location of Mines (-10) 1775 | -10/Subcaves | Ambushed by angry Subdweller bent on revenge 2327 | -10/Subcaves | Found SUBCON Basin 2438 | -10/Subcaves | Learned location of Zion (-7) 2438 | -10/Subcaves | Met a Zionite searching for "candidates" 2617 | -10/Subcaves | Disturbed a concealed Subdweller 2641 | -10/Subcaves | Disturbed a concealed Subdweller 3023 | -10/Subcaves | Identified exit to Recycling 3023 | -10/Subcaves | Discovered exit to Recycling (range 13) 3286 | -10/Subcaves | Core integrity fell below 50% 3614 | -10/Subcaves | Entered Recycling 3678 | -9/Recycling | Scanned before Scraplab entrance 3717 | -9/Recycling | Identified exit to Scraptown 3717 | -9/Recycling | Discovered exit to Scraptown (range 11) 3726 | -9/Recycling | Entered Scraplab 4515 | -9/Recycling | Identified exit to Factory 4515 | -9/Recycling | Discovered exit to Factory (range 15) 5375 | -9/Recycling | Entered Scraptown 5375 | -9/Scraptown | System corruption cleaned by C-Scrubber 5412 | -9/Scraptown | Heard Great Nut preacher, LISTEN AND RECITE! 5697 | -9/Scraptown | Visited Awakened 5723 | -9/Scraptown | Visited Bundlers 5939 | -9/Scraptown | Visited Cave Peace 5968 | -9/Scraptown | Visited Spacefarers 6000 | -9/Scraptown | Visited Symbiants 6019 | -9/Scraptown | Visited Comm Corps 6057 | -9/Scraptown | Visited SPCMW 6281 | -9/Scraptown | Identified exit to Factory 6281 | -9/Scraptown | Discovered exit to Factory (range 13) 7083 | -9/Scraptown | Entered Factory 7083 | -6/Factory | Evolved 8 slots: Power x1, Propulsion x4, Utility x3 7337 | -6/Factory | Fabricated Imp. Medium Treads (x2) 7404 | -6/Factory | Tech Extrapolator generated special schematic: Deep Structural Scanner 7563 | -6/Factory | Lost 4 parts (2p1u1w) 9336 | -6/Factory | Lost 3 parts (3n) 9777 | -6/Factory | Lost 3 parts (1p1n1u) 9835 | -6/Factory | Core integrity fell below 50% 10228 | -6/Factory | Identified exit to Factory 10228 | -6/Factory | Discovered exit to Factory (range 8) 11198 | -6/Factory | Repaired Force Rifle 11341 | -6/Factory | Discovered exit to Factory (range 13) 12429 | -6/Factory | Lost 4 parts (1p2n1u) 12587 | -6/Factory | Lost 3 parts (1p1n1u) 12671 | -6/Factory | Core integrity fell below 20% 13089 | -6/Factory | Destroyed by exploding Fusion Modulator Last Messages --------------- 12970_ K-01 Serf collects debris. 12993_ System corrupted: Matter fused (-6). 12994_ Acquired Mic. Nuclear Core. 13008_ System corrupted: Heat flow error (+199). 13021_ U-05 Engineer repairs door. 13028_ Acquired Lgt. Angular Momentum Engine. 13030_ System corrupted: Heat flow error (+286). 13047_ System corrupted: Energy discharge (-66). 13076_ ALERT: Potential suspicious activity detected, Programmers report to Factory Zone 9V. 13089_ Triggered Proton Bomb Trap. 13089_ A bubble of electromagnetic force engulfs the area. 13089_ Fusion Modulator explodes. 13089_ Alarm Trap short circuited. 13089_ Door malfunctions. 13089_ An alarm sounds. 13089_ ALERT: Alarm triggered, dispatching investigation squad. Map ----- +----------------------------------------------------+ | ?????????????????????????????????????????????????? | | ?????????????????????????????????????????????????? | | ?????????????????????????????????????????????????? | | ?????????????????????????????????????????????????? | | ????????????####################?????????????????? | | ????????????# !! #?????????????????? | | ????????????# !! """ #?????????????????? | | ???? ???????# "Y" #?????????????????? | | ???? ???????# """" """" ! #?????????????????? | | ???? ???????? """" """" #?????????????????? | | ???? ?????????"""" """" * #?????????????????? | | ???? ???????# """" """" #?????????????????? | | ???? ??????# #?????????????????? | | ?###+###??############+###########???????????????? | | ?# #??# """""" # + #???????????????? | | ?# #### """""" # # #???????????????? | | ?+ + """""" + #] #???????????????? | | ?# [ #### """""" #= # #???????????????? | | ?# =![ #??# # ! # #???????????????? | | ?### ###??# #%!|# #???????????????? | | ???#=#????#! # [ # #???????????????? | | #### #????# ! # # / #???????????????? | | ]]!!%#????########### # #???????????????? | | ######?????????????## ####/##########??????????? | | ???????????????????# ^ ??????? | | ???????????????????# @ t ??????? | | ???????????????????# """ """ ??????? | | ??????????????? """ ""????????????? | | ????????????# """ ""????????????? | | ????????????# """ ]] ????????????? | | ???????????????"R" ]] """ """ "?????????????? | | ???????????????" " ]] """ """ "?????????????? | | ??????????????? """ """ ??????????????? | | ??????????????? k ???????????????? | | ?????????????? ???u ???????????????? | | ?????????????? ???? ???????????????? | | ?????????????? """ / ????????????????????? | | ?????????????????" ????????????????????? | | ?????????????????? ###????????????????????? | | ????????????????????? ???????????????????????? | | ??????????????????????? ???????????????????????? | | ?????????????????????????????????????????????????? | | ?????????????????????????????????????????????????? | | ?????????????????????????????????????????????????? | | ?????????????????????????????????????????????????? | | ?????????????????????????????????????????????????? | | ?????????????????????????????????????????????????? | | ?????????????????????????????????????????????????? | | ?????????????????????????????????????????????????? | | ?????????????????????????????????????????????????? | +----------------------------------------------------+ Best States ------------- Heat Dissipation 83 Energy Generation 31 Energy Capacity 430 Matter Stores 300 Matter Capacity 300 Sight Range 16 Terrain Scan Density 210 Additional Mass Support 9 Base Temperature (-) 150 Armor Coverage 225 Resistance: KI 35 Resistance: TH 35 Resistance: EX 35 Resistance: EM 35 Resistance: I 35 Resistance: S 35 Resistance: P 35 Evasion (%) 50 Recoil Reduction 6 Offensive Hacking 20 Authchip Count 5 Item Schematics ----------------- Imp. Light Cannon | -9/Recycling | Hacked Scythe | -9/Recycling | Hacked Cesium-ion Thruster | -9/Recycling | Hacked Imp. Medium Treads | -6/Factory | Scanalyzed Deep Structural Scanner | -6/Factory | Extrapolated Mak. Coolant Network | -6/Factory | Extrapolated Mak. Terrain Scanner | -6/Factory | Extrapolated Hvy. Beamcaster | -6/Factory | Extrapolated Mak. Power Source | -6/Factory | Extrapolated Thunder Leg | -6/Factory | Hacked Multitool | -6/Factory | Extrapolated Robot Schematics ------------------ T-07 Excavator | -9/Recycling | Hacked R-06 Scavenger | -9/Recycling | Hacked B-36 Bruiser | -9/Recycling | Hacked L-41 Fighter | -6/Factory | Hacked G-47 Trooper | -6/Factory | Hacked Fabricated ------------ Imp. Medium Treads | x2 | -6/Factory Repaired ---------- Force Rifle | 10% | -6/Factory Studied --------- None Alien Tech Used ----------------- None Achievements -------------- None Challenges ------------ None Game ------ Seed TechRingPit Manual? 0 Play Time 00:48:45 Cumulative 231.1 hours Start 2025.12.26 @ 13:43:05 End 2025.12.26 @ 14:28:49 Sessions 1 Manual Loads 0 Difficulty Explorer Special Mode None Game No. 359 Rogue 0 Adventurer 0 Explorer 359 Win Type - Total 0 Types 0/0/0/0/0/0/0/0/0/0 Lore% 71 Gallery% 68 Achievement% 54 Wizard Run 0 Options --------- Layout 1 ASCII 0 Keyboard 0 Movement Mouse Keybinds 0 Fullscreen 1 Font 24/Smallcaps Map View 50x35 Zoom Use 0% Tactical HUD 1 Map Filters NONE Filters NONE Steam 1 RUN: cd7bdafb-f7b0-43d0-b5b2-ab7355468fb7